Workbook

Sheet CSII O&M
A1: AVISTA UTILITIES | O1: Plant Location Code | P1: 610
A2: Disaggregate CSII O&M Expense | O2: Service | P2: ED
A3: Washington Electric Cost Study | O3: Jurisdiction | P3: AN
A4: 12 Months Ended December 31, 2018
P5: Transaction Amount | Q5: Electric Amt SUM
A6: Identify CSII non-fuel production expenses during test year by Account to collect in Account 548 for Cost Assignment purposes. | O6: Ferc Acct
O7: 546000 | P7: 159879.96 | Q7: =P7 -> 159879.96
A8: (Most O&M expenses would ordinarily be in Accounts 548 and 553.) | O8: 548000 | P8: 1679253.08 | Q8: =P8 -> 1679253.08
O9: 549000 | P9: 134585.31 | Q9: 134585.31
A10: Account | C10: 12 ME Dec 2018 | E10: Adjustment | F10: WA Share | O10: 550000 | P10: 0 | Q10: 0
A11: (in 000's) | C11: Electric System | F11: 0.6539 | O11: 551000 | P11: 248145.3 | Q11: 248145.3
O12: 552000 | P12: 66189.13 | Q12: 66189.13
A13: 546 | C13: =Q7 -> 159879.96 | E13: =D13-C13 -> -159879.96 | F13: =ROUND(E13*$F$11,0) -> -104546 | O13: 553000 | P13: 3385437.56 | Q13: 3385437.56
A14: 548 | C14: =Q8 -> 1679253.08 | E14: =C22-C14 -> 4196762.68 | F14: =ROUND(E14*$F$11,0) -> 2744263 | O14: 554000 | P14: 202525.42 | Q14: 202525.42
A15: 549 | C15: 134585.31 | E15: =D15-C15 -> -134585.31 | F15: -88005 | P15: =SUM(P7:P14) -> 5876015.76
A16: 550 | C16: 0 | E16: =D16-C16 -> 0 | F16: 0
A17: 551 | C17: 248145.3 | E17: -248145.3 | F17: -162262 | O17: From Accounting Period 201801 to 201812
A18: 552 | C18: 66189.13 | E18: -66189.13 | F18: -43281 | O18: FERC Account 500 - 559
A19: 553 | C19: 3385437.56 | E19: -3385437.56 | F19: -2213738
A20: 554 | C20: 202525.42 | E20: -202525.42 | F20: -132431
C22: =SUM(C12:C21) -> 5876015.76 | E22: =SUM(E12:E21) -> -4.947651178e-10 | F22: =SUM(F12:F21) -> 0
O23: Query Name: Transaction_by_FERC_GL_Detail_w_Loc

Sheet 454 Revenue
A1: AVISTA UTILITIES | M1: Electric Revenue Report by Location Twelve Months Ended for Report Date : '12/31/2018'
A2: Account 454 Rent Revenue from Electric Property
A3: Washington Electric Cost Study | M3: FERC Acct | N3: Source ID | O3: Rev Class Description | P3: Town Cde | Q3: Revenue Amt
A4: Twelve Months Ended December 31, 2016 | P4: Jurisdiction | Q4: ID | R4: WA | S4: AN | T4: Summary
M5: 454000 | N5: REVCCB | O5: 85 MISC-RENT FROM ELECTRIC PROPERTY | Q5: 115331.14 | R5: 282967.61 | T5: 398298.75
N6: REVBILLS | O6: RE Rent Electric | R6: -191.88 | T6: -191.88
O7: RP Rent Permits | P7: 3800 | R7: 0 | T7: 0
C8: Allocation | D8: Total | E8: WA | F8: ID | N8: REVCOL | O8: RC Rent - Colstrip Property | S8: 29417.21 | T8: 29417.21
C9: P/T ratio | D9: =E9+F9 -> 1 | E9: 0.6539 | F9: 0.3461 | N9: REVRENT | O9: RP Rent Permits | P9: 2800 | R9: 2055.03 | S9: 25626.36 | T9: 27681.39
P10: 3800 | R10: -100 | S10: 15 | T10: -85
A11: 454000 | B11: Misc-Rent from Electric Property | C11: Direct | D11: =E11+F11 -> 398298.75 | E11: =R5 -> 282967.61 | F11: =Q5 -> 115331.14 | G11: Use of Facilities Fees | H11: Distribution | P11: 4800 | R11: -1091.64 | S11: 27246.3 | T11: 26154.66
A12: 454000 | B12: RE Rent Electric | C12: Direct | D12: =E12+F12 -> 239558.43 | E12: =R6+R12 -> 239558.43 | F12: =Q12 -> 0 | G12: Leases from Distribution Property/Use of Facilities | H12: Distribution | O12: RE Rent Electric | R12: 239750.31 | S12: 3600 | T12: 243350.31
A13: 454000 | B13: RA & RB Rent Electric | C13: Direct | D13: =E13+F13 -> 2227792.36 | E13: =R13+R14 -> 1266070.17 | F13: =Q13+Q14 -> 961722.19 | G13: Pole Contact Fees | H13: Distribution | N13: REVPOLE | O13: RA Rent Electric - Accrued | Q13: 837454.93 | R13: 1058372.49 | T13: 1895827.42
A14: 454100 | B14: TA & TP Transmission Rent Electric | C14: Direct | D14: =E14+F14 -> 30512.16 | E14: =R15+R16 -> 13789.3 | F14: =Q15+Q16 -> 16722.86 | G14: Pole Contact Fees | H14: Transmission | O14: RB Rent Electric - Advance billing | Q14: 124267.26 | R14: 207697.68 | T14: 331964.94
A15: 454000 | B15: RC Rent - Colstrip Property | C15: P/T ratio | D15: =S8 -> 29417.21 | E15: =ROUND($D15*E$9,0) -> 19236 | F15: =ROUND($D15*F$9,0) -> 10181 | G15: Rental for Colstrip Property | H15: Production | M15: 454100 | N15: REVPOLE | O15: TA Transmission Rent Accrued | Q15: 651.36 | R15: 441.94 | T15: 1093.3
A16: 454000 | B16: RP Rent Permits | C16: P/T ratio | D16: =T11 -> 26154.66 | E16: 17103 | F16: 9052 | G16: Land Use Permits at Noxon | H16: Production | O16: TP Transmission Rent Advanced Billing | Q16: 16071.5 | R16: 13347.36 | T16: 29418.86
A17: 454000 | B17: RP Rent Permits | C17: P/T ratio | D17: =T7+T9+T10+S12 -> 31196.39 | E17: 20399 | F17: 10797 | G17: Land Use Permits on Transmission Line Land | H17: Transmission | M17: Summary | Q17: 1093776.19 | R17: 1803248.9 | S17: 85904.87 | T17: 2982929.96
D18: =SUM(D11:D17) -> 2982929.96 | E18: =SUM(E11:E17) -> 1859123.51 | F18: =SUM(F11:F17) -> 1123806.19
B20: Per Results Total | D20: =SUM(E20:F20) -> 2983000 | E20: 1859000 | F20: 1124000
B21: Production | D21: =SUM(E21:F21) -> 55000 | E21: =ROUND(SUMIF($H$11:$H$17,$B21,E$11:E$17),-3) -> 36000 | F21: 19000
B22: Transmission | D22: =SUM(E22:F22) -> 62000 | E22: 34000 | F22: 28000
B23: Distribution | D23: =SUM(E23:F23) -> 2866000 | E23: 1789000 | F23: 1077000
D24: =SUM(E24:F24) -> 2983000 | E24: =SUM(E21:E23) -> 1859000 | F24: =SUM(F21:F23) -> 1124000
M25: Report: 2018 FERC Acct 12ME w Rev Class / 454 Revenue
A26: Adjustments to Account 454
B27: Eliminate B&O Tax | C27: Adj E-EBO-2 | E27: -13000 | G27: Distribution
B31: Production Total | E31: =E21+E28 -> 36000
B32: Transmission Total | E32: =E22 -> 34000
B33: Distribution Total | E33: =E23+E27 -> 1776000
B34: Pro Forma Total | E34: =SUM(E31:E33) -> 1846000

Sheet 456 Revenue
A1: AVISTA UTILITIES | S1: Electric Revenue Report by Location Twelve Months Ended for Report Date : '12/31/2018'
A2: Functionalize Other Operating Revenue
A3: Washington Electric Cost Study | S3: FERC Acct | T3: Source ID | U3: Rev Class Description | W3: Revenue Amt
A4: Twelve Months Ended December 31, 2018 | V4: Jurisdiction | W4: AN | X4: WA | Y4: ID | Z4: Summary
F5: System | S5: 456000 | T5: REVBILLS | U5: GA Other Gas Allocated | W5: 9643.74 | Z5: 9643.74
E6: System Total | F6: Adjustments | G6: Reference | H6: Pro Forma Total | I6: WA | J6: ID | U6: OA Other Electric Allocated | W6: 349322.79 | X6: 2130.31 | Z6: 351453.1
D7: Allocation | H7: =I7+J7 -> 1 | I7: 0.6539 | J7: 0.3461 | U7: OD Other Electric Direct | W7: 22025.75 | X7: 35069.39 | Y7: 1300 | Z7: 58395.14
H8: =I8+J8 -> 1 | I8: 0.6573 | J8: 0.3427 | T8: REVCOL | U8: OC Other Revenue & Scrap Sales - Colstrip | W8: 31836.27 | Z8: 31836.27
A9: 456000 | B9: Miscellaneous | C9: Other Electric Allocated | D9: P/T ratio | E9: =SUM(W5:W14)-E10 -> 960833.12 | H9: =ROUND(E9,-3)+F9 -> 961000 | I9: =$H9*I$7 -> 628397.9 | J9: =$H9*J$7 -> 332602.1 | K9: Distribution | L9: Pre-line School and Centralized Distribution Services for other utilities | T9: REVEARNED | U9: AD Apprentice Lineman School Deposits | W9: 8400 | Z9: 8400
A10: 456000 | B10: Miscellaneous | C10: OC Other Revenue - Colstrip | D10: P/T ratio | E10: =W8 -> 31836.27 | H10: =ROUND(E10,-3)+F10 -> 32000 | I10: =$H10*I$7 -> 20924.8 | J10: =$H10*J$7 -> 11075.2 | K10: Production | U10: AL Apprentice Lineman School Receivable | W10: 63925.16 | Z10: 63925.16
A11: 456000 | B11: Miscellaneous | C11: Other Electric Direct | D11: Direct | E11: =I11+J11 -> 39928.7 | H11: 40000 | I11: =SUM(X5:X14) -> 38628.7 | J11: =SUM(Y5:Y14) -> 1300 | K11: Distribution | L11: Make Readies and Misc Contracts | U11: PD Pre-Line School Deposits | W11: 26515.56 | Z11: 26515.56
A12: 456010 | B12: Turbine Gas | C12: AG/AH | D12: P/T ratio | E12: =SUM(W15:W16) -> 5327941.5 | F12: -5328000 | G12: E-APS OER | H12: =ROUND(E12+F12,-3) -> 0 | I12: =$H12*I$8 -> 0 | J12: 0 | K12: Production | U12: PL Pre-Line School Receivable | W12: 480717.62 | Z12: 480717.62
A13: 456015 | B13: Turbine Gas | C13: CC/CO/GF | D13: P/T ratio | E13: =SUM(W17:W19) -> 33445350.85 | F13: -33445000 | G13: E-APS OER | H13: =ROUND(E13+F13,-3) -> 0 | I13: 0 | J13: 0 | K13: Production | T13: REVPS | U13: EN EnerVee Electric | W13: 282.5 | Z13: 282.5
A14: 456016 | B14: Resource Optimization | C14: RO | D14: P/T ratio | E14: =W20 -> 4855921.55 | F14: -4856000 | G14: E-APS OER | H14: =ROUND(E14,-3)+F14 -> 0 | I14: 0 | J14: 0 | K14: Production | U14: EV Fast Charger | X14: 1429 | Z14: 1429
A15: 456016 | B15: Resource Optimization | C15: RW REC's Direct WA | D15: Direct | E15: 0 | H15: =ROUND(E15,-3)+F15 -> 0 | I15: =H15 -> 0 | J15: 0 | K15: Production | L15: WA EIA REC Sales | S15: 456010 | T15: REVFUEL | U15: AG Turbine Gas Financial Mizuho Clearing Agent | W15: 1023486 | Z15: 1023486
A16: 456017 | B16: Non-Resource Other Elec Rev | C16: NR | D16: P/T ratio | E16: =W21 -> 60244.08 | G16: E-APS TW | H16: 60000 | I16: =$H16*I$8 -> 39438 | J16: =$H16*J$8 -> 20562 | K16: Transmission | L16: Generation Interconnection Non-Refundable Deposits | U16: AH Turbine Gas Financial Wells Fargo | W16: 4304455.5 | Z16: 4304455.5
A17: 456018 | B17: Extraction Credits | C17: CC Extraction Plant Credits | D17: P/T ratio | E17: =W22 -> 755451.97 | F17: -755000 | G17: E-APS OER | H17: =ROUND(E17,-3)+F17 -> 0 | I17: =$H17*I$8 -> 0 | J17: 0 | K17: Production | S17: 456015 | T17: REVFUEL | U17: CC Extraction Plant Credits | W17: 130421.77 | Z17: 130421.77
A18: 456020 | B18: Transmission Release Rev | C18: BT BPA Excess Transm Sales | D18: P/T ratio | E18: =W23 -> 313913.75 | F18: 0 | G18: E-APS TW | H18: =ROUND(E18,-3)+F18 -> 314000 | I18: 206392.2 | J18: 107607.8 | K18: Transmission | U18: CO Cochrane Extraction Credit | W18: -130421.77 | Z18: -130421.77
A19: 4561xx | B19: Wheeling | C19: ET/JB/PC/EA Electric Transmission | D19: P/T ratio | E19: =SUM(W24:W27) -> 15959856.54 | F19: =-2933000-105000-51000-1000-F18-F21-F22-F16 -> -3090000 | G19: E-APS TW | H19: =ROUND(E19,-3)+F19 -> 12870000 | I19: 8459451 | J19: 4410549 | K19: Transmission | U19: GF Turbine Gas Physical | W19: 33445350.85 | Z19: 33445350.85
A20: 4563xx | B20: Decoupling Deferred Rev | C20: Decoupling Deferred Rev | D20: Direct | E20: =SUM(X28:Y34) -> 4869584.17 | F20: -4870000 | G20: E-WN/EAS/RN | H20: =ROUND(E20,-3)+F20 -> 0 | I20: 0 | J20: 0 | K20: Distribution | S20: 456016 | T20: REVREC | U20: RO Miscellaneous Resource Optimization | W20: 4855921.55 | Z20: 4855921.55
A21: 456700 | B21: Low Voltage Wheeling | C21: DE Electric Distribution | D21: Direct | E21: =X35+Y35 -> 156508.14 | F21: -157000 | G21: E-APS TW | H21: =ROUND(E21,-3)+F21 -> 0 | I21: 0 | J21: 0 | K21: Distribution | L21: Wheeling over Distribution System (3 contracts) | S21: 456017 | T21: REVTRAN | U21: NR Other Electric Revenue - Non Resource | W21: 60244.08 | Z21: 60244.08
A22: 456705 | B22: Low Voltage Wheeling | C22: LV Electric Distribution | D22: P/T ratio | E22: =W36 -> 1747966 | F22: 157000 | G22: E-APS TW | H22: 1905000 | I22: 1252156.5 | J22: 652843.5 | K22: Distribution | L22: Low Voltage portion of BPA Network Contracts in WA, ID and MT | S22: 456018 | T22: REVFUEL | U22: CC Extraction Plant Credits | W22: 755451.97 | Z22: 755451.97
A23: 456730 | B23: Thermal Gas | C23: IT Intraco Thermal Gas | D23: P/T ratio | E23: =SUM(W37:W39) -> 30550889.12 | F23: -30551000 | G23: E-APS OER | H23: =ROUND(E23+F23,-3) -> 0 | I23: 0 | J23: 0 | K23: Production | S23: 456020 | T23: REVESALES | U23: BT BPA Excess Transm Sales | W23: 313913.75 | Z23: 313913.75
E24: =SUM(E9:E23) -> 99076225.76 | F24: =SUM(F9:F23) -> -82895000 | H24: =SUM(H9:H23) -> 16182000 | I24: =SUM(I9:I23) -> 10645389.1 | J24: =SUM(J9:J23) -> 5536539.6 | S24: 456100 | T24: REVTRAN | U24: ET Electric Transmission | W24: 12421345.8 | Z24: 12421345.8
E25: 99076228 | U25: JB Electric Retained Damages - First Wind | W25: 251654.28 | Z25: 251654.28
S26: 456120 | T26: REVTRAN | U26: PC Parallel Capacity Support Rev | W26: 924000 | Z26: 924000
D27: =ROUND(E27,-3) -> 74967000 | E27: =SUMIF($K$9:$K$23,$H27,E$9:E$23) -> 74967391.26 | F27: =SUMIF($K$9:$K$24,$H27,F$9:F$23) -> -74935000 | H27: Production | I27: =ROUND(SUMIF($K$9:$K$24,$H27,I$9:I$23),-3) -> 21000 | J27: 11000 | S27: 456130 | T27: REVTRAN | U27: EA Electric Ancillary Transmission | W27: 2362856.46 | Z27: 2362856.46
D28: =ROUND(E28,-3) -> 16334000 | E28: =SUMIF($K$9:$K$23,$H28,E$9:E$23) -> 16334014.37 | F28: -3090000 | H28: Transmission | I28: =ROUND(SUMIF($K$9:$K$24,$H28,I$9:I$23),-3)+1000 -> 8706000 | J28: =ROUND(SUMIF($K$9:$K$24,$H28,J$9:J$23),-3)-1000 -> 4538000 | S28: 456311 | T28: REVDECOUPLING | U28: CW Contra Decoupling Deferral WA | X28: -1396884.38 | Z28: -1396884.38
D29: =ROUND(E29,-3) -> 7775000 | E29: =SUMIF($K$9:$K$23,$H29,E$9:E$23) -> 7774820.13 | F29: -4870000 | H29: Distribution | I29: =ROUND(SUMIF($K$9:$K$24,$H29,I$9:I$23),-3) -> 1919000 | J29: 987000 | S29: 456328 | T29: REVDECOUPLING | U29: RD Res Decoupling Deferred Rev | X29: 8398268.76 | Y29: 1745107.86 | Z29: 10143376.62
D30: =SUM(D27:D29) -> 99076000 | E30: =SUM(E27:E29) -> 99076225.76 | F30: =SUM(F27:F29) -> -82895000 | I30: =SUM(I27:I29) -> 10646000 | J30: =SUM(J27:J29) -> 5536000 | S30: 456329 | T30: REVDECOUPLING | U30: AC Amort Res Decoupling Def Rev | Y30: 317937.16 | Z30: 317937.16
U31: AR Amort Res Decoupling Deferred Rev | X31: 0 | Z31: 0
U32: EZ Amort Res E Decoupling Def Rev | X32: -7545364.83 | Y32: -2066553.62 | Z32: -9611918.45
S33: 456338 | T33: REVDECOUPLING | U33: NW Non-Res Decoupling Deferred Rev | X33: 6898027.75 | Y33: 1415142.1 | Z33: 8313169.85
S34: 456339 | T34: REVDECOUPLING | U34: FA Elec Amort Non-Rest Decoupling | X34: -857983.2 | Y34: -2038113.43 | Z34: -2896096.63
S35: 456700 | T35: REVTRAN | U35: DE Electric Distribution | X35: 105727.26 | Y35: 50780.88 | Z35: 156508.14
S36: 456705 | T36: REVTRAN | U36: LV Electric Distribution | W36: 1747966 | Z36: 1747966
S37: 456711 | T37: REVFUEL | U37: GK Turbine Gas Bookout | W37: -5765181.88 | Z37: -5765181.88
S38: 456720 | T38: REVFUEL | U38: GK Turbine Gas Bookout | W38: 5765181.88 | Z38: 5765181.88
S39: 456730 | T39: REVFUEL | U39: IT Intraco Thermal Gas | W39: 30550889.12 | Z39: 30550889.12
S40: Summary | W40: 94010204.75 | X40: 5640420.06 | Y40: -574399.05 | Z40: 99076225.76
S42: Report: 2018 FERC Acct 12ME w Rev Class / 456 Revenue | W42: =W40-94010205 -> -0.25 | X42: =X40-5640421 -> -0.9400000004 | Y42: =Y40--574398 -> -1.05 | Z42: =Z40-99076228 -> -2.239999995

Sheet 407 Reg Def-Amort
A1: AVISTA UTILITIES
A2: Functionalize Regulatory Deferrals and Amortizations
A3: Washington Electric Cost Study
A4: Twelve Months Ended December 31, 2018
E5: H | F5: S | G5: P | H5: R | I5: T | J5: D | K5: O
A6: ROO Account 407 Analysis | C6: Function Code | E6: Hydro Related | F6: Steam Related | G6: Peaking Unit Related | H6: Renewable Related | I6: Transmission Related | J6: Distribution Related | K6: Other/General Related
D7: WA ROO Total
A8: 406100 | B8: Amort of Acq Adj--Colstrip Common AFUDC | C8: S | D8: 31743 | E8: =IF($C8=E$5,$D8,0) -> 0 | F8: =IF($C8=F$5,$D8,0) -> 31743 | G8: 0 | H8: 0 | I8: 0 | J8: 0 | K8: 0
A9: 407312 | B9: Amortization of Lancaster Generation | C9: S | D9: 0 | E9: =IF($C9=E$5,$D9,0) -> 0 | F9: 0 | G9: 0 | H9: 0 | I9: 0 | J9: 0 | K9: 0
A10: 407320 | B10: Amortization of Colstrip Outage Return | C10: S | D10: 0 | E10: =IF($C10=E$5,$D10,0) -> 0 | F10: 0 | G10: 0 | H10: 0 | I10: 0 | J10: 0 | K10: 0
A11: 407322 | B11: Amortization of Spokane River Relicense | C11: H | D11: 72939 | E11: 72939 | F11: 0 | G11: 0 | H11: 0 | I11: 0 | J11: 0 | K11: 0
A12: 407324 | B12: Amortization of CDA CDR Fund | C12: H | D12: 141845 | E12: 141845 | F12: 0 | G12: 0 | H12: 0 | I12: 0 | J12: 0 | K12: 0
A13: 407326 | B13: Amortization of Spokane River TDG | C13: H | D13: 0 | E13: 0 | F13: 0 | G13: 0 | H13: 0 | I13: 0 | J13: 0 | K13: 0
A14: 407331 | B14: Amortization of BPA Parallel Capacity Support | C14: T | D14: 0 | E14: 0 | F14: 0 | G14: 0 | H14: 0 | I14: 0 | J14: 0 | K14: 0
A15: 407333 | B15: Amortization of CDA Settlement Costs | C15: H | D15: 21395 | E15: 21395 | F15: 0 | G15: 0 | H15: 0 | I15: 0 | J15: 0 | K15: 0
A16: 407335 | B16: Amortization of ID DSIT | C16: O | D16: 0 | E16: 0 | F16: 0 | G16: 0 | H16: 0 | I16: 0 | J16: 0 | K16: 0
A17: 407350 | B17: Amortization of WA Renewable Energy Credits | C17: R | D17: 0 | E17: 0 | F17: 0 | G17: 0 | H17: 0 | I17: 0 | J17: 0 | K17: 0
A18: 407351 | B18: Amortization of CNC Transmission | C18: T | D18: 0 | E18: 0 | F18: 0 | G18: 0 | H18: 0 | I18: 0 | J18: 0 | K18: 0
A19: 407360 | B19: Amortization of CS2 & COLSTRIP O&M | C19: S | D19: 0 | E19: 0 | F19: 0 | G19: 0 | H19: 0 | I19: 0 | J19: 0 | K19: 0
A20: 407362 | B20: Amortization of LiDAR O&M | C20: T | D20: 0 | E20: 0 | F20: 0 | G20: 0 | H20: 0 | I20: 0 | J20: 0 | K20: 0
A21: 407365 | B21: Amortization of Wind Generation | C21: R | D21: 0 | E21: 0 | F21: 0 | G21: 0 | H21: 0 | I21: 0 | J21: 0 | K21: 0
A22: 407368 | B22: Amortization of Project Compass | C22: O | D22: 0 | E22: 0 | F22: 0 | G22: 0 | H22: 0 | I22: 0 | J22: 0 | K22: 0
A23: 407380 | B23: Amortization of Wartsila Generators | C23: P | D23: 0 | E23: 0 | F23: 0 | G23: 0 | H23: 0 | I23: 0 | J23: 0 | K23: 0
A24: 407382 | B24: Amortization of CDA Settlement - Allocated | C24: H | D24: 578104 | E24: 578104 | F24: 0 | G24: 0 | H24: 0 | I24: 0 | J24: 0 | K24: 0
A25: 407382 | B25: Amortization of CDA Settlement - Direct | C25: H | D25: 152118 | E25: 152118 | F25: 0 | G25: 0 | H25: 0 | I25: 0 | J25: 0 | K25: 0
A26: 407391 | B26: Amortization of Spokane River TDG | C26: H | D26: 0 | E26: 0 | F26: 0 | G26: 0 | H26: 0 | I26: 0 | J26: 0 | K26: 0
A27: 407395 | B27: Optional Renewable Power Revenue Offset | C27: R | D27: 186347 | E27: 0 | F27: 0 | G27: 0 | H27: 186347 | I27: 0 | J27: 0 | K27: 0
A28: 407403 | B28: Amortization of Dissallowed K.F. Plant | C28: S | D28: -134592 | E28: 0 | F28: -134592 | G28: 0 | H28: 0 | I28: 0 | J28: 0 | K28: 0
A29: 407405 | B29: Amortization of Boulder Park Write Off - Idaho | C29: P | D29: 0 | E29: 0 | F29: 0 | G29: 0 | H29: 0 | I29: 0 | J29: 0 | K29: 0
A30: 407420 | B30: Amortization of CS2 Levelized Return | C30: S | D30: 0 | E30: 0 | F30: 0 | G30: 0 | H30: 0 | I30: 0 | J30: 0 | K30: 0
A31: 407450/407499 | B31: Amortization of BPA Residential Exchange Credit | C31: O | D31: -1889276 | E31: 0 | F31: 0 | G31: 0 | H31: 0 | I31: 0 | J31: 0 | K31: -1889276
A32: 407455 | B32: Amortization of Colstrip Refund | C32: S | D32: 0 | E32: 0 | F32: 0 | G32: 0 | H32: 0 | I32: 0 | J32: 0 | K32: 0
A33: 407460 | B33: Amortization of Deferred CS2 & COLSTRIP O&M | C33: S | D33: 0 | E33: 0 | F33: 0 | G33: 0 | H33: 0 | I33: 0 | J33: 0 | K33: 0
A34: 407462 | B34: Amortization of Deferred LiDAR O&M | C34: T | D34: 0 | E34: 0 | F34: 0 | G34: 0 | H34: 0 | I34: 0 | J34: 0 | K34: 0
A35: 407494 | B35: Amortization of Schedule 98 REC Rev | C35: R | D35: 41533 | E35: 0 | F35: 0 | G35: 0 | H35: 41533 | I35: 0 | J35: 0 | K35: 0
A36: 407495 | B36: Optional Renew Solar Project Offset | C36: R | D36: -5503 | E36: 0 | F36: 0 | G36: 0 | H36: -5503 | I36: 0 | J36: 0 | K36: 0
A37: 407496 | B37: Def Palouse Wind & Thornton Sw St | C37: R | D37: 0 | E37: 0 | F37: 0 | G37: 0 | H37: 0 | I37: 0 | J37: 0 | K37: 0
A38: 407497 | B38: Amortization of BPA Settlement | C38: T | D38: 0 | E38: 0 | F38: 0 | G38: 0 | H38: 0 | I38: 0 | J38: 0 | K38: 0
A39: 407229 | B39: Idaho Earnings Test Amortization | C39: O | D39: 0 | E39: 0 | F39: 0 | G39: 0 | H39: 0 | I39: 0 | J39: 0 | K39: 0
A40: 407230 | B40: Tax Reform Amortization | C40: O | D40: -3927632 | E40: 0 | F40: 0 | G40: 0 | H40: 0 | I40: 0 | J40: 0 | K40: -3927632
A41: 407311 | B41: Regulatory Debit - AFUDC Amortization | C41: O | D41: 41487 | E41: 0 | F41: 0 | G41: 0 | H41: 0 | I41: 0 | J41: 0 | K41: 41487
A42: 407319 | B42: AFUDC Equity DFIT Deferral | C42: O | D42: 797405 | E42: 0 | F42: 0 | G42: 0 | H42: 0 | I42: 0 | J42: 0 | K42: 797405
A43: 407332 | B43: Existing Meters Excess Deprec. Deferral | C43: D | D43: 187845 | E43: 0 | F43: 0 | G43: 0 | H43: 0 | I43: 0 | J43: 187845 | K43: 0
A44: 407414 | B44: Regulatory Credit - Deferral - FISERVE | C44: O | D44: -527265 | E44: 0 | F44: 0 | G44: 0 | H44: 0 | I44: 0 | J44: 0 | K44: -527265
A45: 407436 | B45: Regulatory Credit - MDM System | C45: D | D45: -2497735 | E45: 0 | F45: 0 | G45: 0 | H45: 0 | I45: 0 | J45: -2497735 | K45: 0
A46: 407468 | B46: Project Compass Deferral - ID | C46: O | D46: 0 | E46: 0 | F46: 0 | G46: 0 | H46: =IF($C46=H$5,$D46,0) -> 0 | I46: 0 | J46: 0 | K46: 0
D48: =SUM(D8:D46) -> -6729242 | E48: =SUM(E8:E46) -> 966401 | F48: =SUM(F8:F46) -> -102849 | G48: 0 | H48: 222377 | I48: 0 | J48: -2309890 | K48: -5505281

Sheet Intangible
A1: AVISTA UTILITIES
A2: Production and Transmission Related Intangible Plant Analysis
A3: Washington Electric Cost Study
A4: Twelve Months Ended December 31, 2018
D6: Allocation | E6: Total | F6: WA | G6: ID
D7: P/T ratio | E7: =F7+G7 -> 1 | F7: 0.6539 | G7: 0.3461
D8: 4-factor | E8: =F8+G8 -> 1 | F8: 0.68595 | G8: 0.31405
A10: Plant-AMA
A11: Account 301 | B11: Organization | D11: P/T ratio | E11: 0 | F11: =ROUND($E11*F$7,0) -> 0 | G11: 0
A12: Account 302 | B12: Franchises & Consents | D12: P/T ratio | E12: =ROUND(SUM(N69,Q69:S69),0)-1 -> 43679748 | F12: =ROUND($E12*F$7,0) -> 28562187 | G12: =ROUND($E12*G$7,0) -> 15117561 | H12: Production (Hydro Relicensing) | L12: System EB | M12: WA Share | N12: EB Adj
A13: Account 302 | B13: Franchises & Consents | D13: P/T ratio | E13: =ROUND(SUM(O69:P69),0) -> 369470 | F13: 241596 | G13: 127874 | H13: Transmission (Forest Service Use Permit)
A14: Account 302 | B14: Franchises & Consents | D14: Direct | E14: =F14+G14 -> 602704 | F14: =ROUND(T69,0) -> 602704 | G14: 0 | H14: Distribution (WA DOT Franchises)
A15: Account 303.00 | B15: Misc Intangible Plant | D15: P/T ratio | E15: 10389595 | F15: =ROUND($E15*F$7,0) -> 6793756 | G15: =ROUND($E15*G$7,0) -> 3595839 | H15: Transmission (Communication Agreements) | K15: Transmission 303 | L15: 10501811 | M15: =L15*$F$7 -> 6867134.213 | N15: =M15-F15 -> 73378.2129
A16: Account 303.00 | B16: Misc Intangible Plant | D16: 4-factor | E16: 6599684 | F16: =ROUND($E16*F$8,0)+1 -> 4527054 | G16: =ROUND($E16*G$8,0)-1 -> 2072630 | H16: Common Allocated All Allocation - General Plt | K16: General 303 AA | L16: 8033663 | M16: =ROUND(L16*$F$8,0) -> 5510691 | N16: =M16-F16 -> 983637
A17: Account 303.00 | B17: Misc Intangible Plant | D17: P/T ratio | E17: 150812 | F17: =ROUND($E17*F$7,0) -> 98616 | G17: =ROUND($E17*G$7,0) -> 52196 | H17: Common Allocated North Allocation - General Plt | K17: General 303 AN | L17: 150812 | M17: =ROUND(L17*$F$7,0) -> 98616 | N17: =M17-F17 -> 0
A18: Account 303.00 | B18: Misc Intangible Plant | D18: Direct | E18: =F18+G18 -> 319716 | F18: 319716 | G18: 0 | H18: Distribution (Substation Agreements) | K18: Distribution 303 | L18: 319716 | M18: =L18 -> 319716 | N18: =M18-F18 -> 0
E19: =SUM(E11:E18) -> 62111729 | F19: =SUM(F11:F18) -> 41145629 | G19: =SUM(G11:G18) -> 20966100 | M19: =SUM(M15:M18) -> 12796157.21 | N19: =SUM(N15:N18) -> 1057015.213
D20: =E20-E19 -> 0 | E20: =44651922+17459807 -> 62111729 | F20: =29406488+11739141 -> 41145629 | G20: =15245434+5720666 -> 20966100 | H20: check | K20: Transmission 302 | L20: =O69 -> 369469.5 | M20: =L20*$F$7 -> 241596.1061 | N20: =M20-F13 -> 0.10605
A21: Accumulated Amortization-AMA | K21: Distribution 302 | L21: =T66 -> 602703.89 | M21: =L21 -> 602703.89 | N21: =M21-F14 -> -0.11
A22: 111000 | B22: 302000 | D22: P/T ratio | E22: =ROUND(SUM(N123,P123:S123),0) -> -11340387 | F22: =ROUND($E22*F$7,0) -> -7415479 | G22: =ROUND($E22*G$7,0) -> -3924908 | H22: Production (Hydro Relicensing) | M22: =SUM(M19:M21) -> 13640457.21 | N22: =SUM(N19:N21) -> 1057015.209
A23: 111000 | B23: 302000 | D23: P/T ratio | E23: =ROUND(O123,0) -> -178567 | F23: =ROUND($E23*F$7,0) -> -116765 | G23: =ROUND($E23*G$7,0) -> -61802 | H23: Transmission (Forest Service Use Permit)
A24: 111000 | B24: 302000 | D24: Direct | E24: =F24+G24 -> -205618 | F24: =ROUND(T123,0) -> -205618 | G24: =ROUND(S123,0) -> 0 | H24: Distribution (WA DOT Franchises)
A25: 111000 | B25: 303000 | D25: P/T ratio | E25: -1731653 | F25: =ROUND($E25*F$7,0) -> -1132328 | G25: =ROUND($E25*G$7,0) -> -599325 | H25: Transmission (Communication Agreements) | K25: Transmission 303 | L25: -1848823 | M25: =L25*$F$7 -> -1208945.36 | N25: =M25-F25 -> -76617.3597
A26: 111000 | B26: 303000 | D26: 4-factor | E26: -1971754 | F26: =ROUND($E26*F$8,0) -> -1352525 | G26: =ROUND($E26*G$8,0) -> -619229 | H26: Common Allocated All Allocation - General Plt | K26: General 303 AA | L26: -2199788 | M26: =ROUND(L26*$F$8,0) -> -1508945 | N26: =M26-F26 -> -156420
A27: 111000 | B27: 303000 | D27: P/T ratio | E27: -78983 | F27: =ROUND($E27*F$7,0) -> -51647 | G27: =ROUND($E27*G$7,0) -> -27336 | H27: Common Allocated North Allocation - General Plt | K27: General 303 AN | L27: -82765 | M27: =ROUND(L27*$F$7,0) -> -54120 | N27: =M27-F27 -> -2473
A28: 111000 | B28: 303000 | D28: Direct | E28: =F28+G28 -> -39740 | F28: -39740 | G28: 0 | H28: Distribution (Substation Agreements) | K28: Distribution 303 | L28: -42673 | M28: =L28 -> -42673 | N28: =M28-F28 -> -2933
E29: =SUM(E22:E28) -> -15546702 | F29: =SUM(F22:F28) -> -10314102 | G29: =SUM(G22:G28) -> -5232600 | M29: =SUM(M25:M28) -> -2814683.36 | N29: =SUM(N25:N28) -> -238443.3597
D30: =E30-E29 -> 0 | E30: =-13250607-245358-2050737 -> -15546702 | F30: =-8664572-245358-1404172 -> -10314102 | G30: =-4586035-646565 -> -5232600 | H30: check | K30: Transmission 302 | L30: =O119 -> -184725.22 | M30: =L30*$F$7 -> -120791.8214 | N30: =M30-F23 -> -4026.821358
A31: Amortization Expense | K31: Distribution 302 | L31: =T119 -> -217694.42 | M31: =L31 -> -217694.42 | N31: =M31-F24 -> -12076.42
A32: 404000 | B32: 302000 | D32: P/T ratio | E32: =-ROUND((SUM(N95,P95:S95)),0) -> 906084 | F32: =ROUND($E32*F$7,0)+1 -> 592489 | G32: =ROUND($E32*G$7,0)-1 -> 313595 | H32: Production (Hydro Relicensing) | M32: =SUM(M29:M31) -> -3153169.601 | N32: =SUM(N29:N31) -> -254546.6011
A33: 404000 | B33: 302000 | D33: P/T ratio | E33: =-ROUND(O95,0) -> 12316 | F33: =ROUND($E33*F$7,0) -> 8053 | G33: 4263 | H33: Transmission (Forest Service Use Permit)
A34: 404000 | B34: 302000 | D34: Direct | E34: =F34+G34 -> 24153 | F34: =-ROUND(T95,0) -> 24153 | G34: =-ROUND(S95,0) -> 0 | H34: Distribution (WA DOT Franchises)
A35: 404000 | B35: 303000 | D35: P/T ratio | E35: 234459 | F35: =ROUND($E35*F$7,0) -> 153313 | G35: =ROUND($E35*G$7,0) -> 81146 | H35: Transmission (Communication Agreements) | K35: Transmission 303 | L35: 234459 | M35: =L35*$F$7 -> 153312.7401 | N35: =M35-F35 -> -0.2599
A36: 404000 | B36: 303000 | D36: 4-factor | E36: 439979 | F36: =ROUND($E36*F$8,0) -> 301804 | G36: =ROUND($E36*G$8,0) -> 138175 | H36: Common Allocated All Allocation - General Plt | K36: General 303 AA | L36: =439979+61160 -> 501139 | M36: =ROUND(L36*$F$8,0) -> 343756 | N36: =M36-F36 -> 41952
A37: 404000 | B37: 303000 | D37: P/T ratio | E37: 7561 | F37: =ROUND($E37*F$7,0) -> 4944 | G37: =ROUND($E37*G$7,0) -> 2617 | H37: Common Allocated North Allocation - General Plt | K37: General 303 AN | L37: =E37 -> 7561 | M37: =ROUND(L37*$F$7,0) -> 4944 | N37: =M37-F37 -> 0
A38: 404000 | B38: 303000 | D38: Direct | E38: =F38+G38 -> 5866 | F38: 5866 | G38: 0 | H38: Distribution (Substation Agreements) | K38: Distribution 303 | L38: =E38 -> 5866 | M38: =L38 -> 5866 | N38: =M38-F38 -> 0
E39: =SUM(E32:E38) -> 1630418 | F39: =SUM(F32:F38) -> 1090622 | G39: =SUM(G32:G38) -> 539796 | M39: =SUM(M35:M38) -> 507878.7401 | N39: =SUM(N35:N38) -> 41951.7401
D40: =E40-E39 -> 0 | E40: =1152859+30019+447540 -> 1630418 | F40: =753855+30019+306748 -> 1090622 | G40: =399004+140792 -> 539796 | H40: check | K40: Transmission 302 | L40: =E33 -> 12316 | M40: =L40*$F$7 -> 8053.4324 | N40: =M40-F33 -> 0.4324
K41: Distribution 302 | L41: =E34 -> 24153 | M41: =L41 -> 24153 | N41: =M41-F34 -> 0
E42: 1.00 Value | F42: Restated for COS | G42: COS Reclass Adj | M42: =SUM(M39:M41) -> 540085.1725 | N42: =SUM(N39:N41) -> 41952.1725
A43: Add Hydro Relicensing Related Regulatory Asset Amortization | F43: ='407 Reg Def-Amort'!E48 -> 966401 | H43: See 407 Reg Def-Amort Analysis
B44: Total Hydro Relicensing Amortization | E44: 1591096 | F44: =F32+F43 -> 1558890 | G44: =E44-F44 -> 32206
B45: Total Miscellaneous Intangible Amortization | E45: 465927 | F45: =F39-F32 -> 498133 | G45: =E45-F45 -> -32206
L46: Intangible Plant Query Plant Account 302 Gl Service : ED , Plant Acct : 302000
L49: Ending Balance | M49: Plant Acct | N49: 302000
M50: GL FERC Acct | N50: 101000
M51: GL Service | N51: ED
M52: GL Jurisdiction | N52: AN | T52: WA
M53: Facility ID | N53: CABINET GORGE HED | O53: FOREST USE PERMITS - IDAHO | P53: LOLO-OXBOW 230KV LINE - OREGON | Q53: Long Lake | R53: NOXON RAPIDS HED | S53: POST FALLS HED | T53: WASHINGTON STATE FRANCHISES 028 | U53: Note: Long Lake HED values shown under the description "ke" beginning July 2012
L54: 201712 | N54: 8667214.14 | O54: 369469.5 | P54: 0 | Q54: 27217345.56 | R54: 6222447.88 | S54: 1572740.97 | T54: 602703.89
L55: 201801 | N55: 8667214.14 | O55: 369469.5 | P55: 0 | Q55: 27217345.56 | R55: 6222447.88 | S55: 1572740.97 | T55: 602703.89
L56: 201802 | N56: 8667214.14 | O56: 369469.5 | P56: 0 | Q56: 27217345.56 | R56: 6222447.88 | S56: 1572740.97 | T56: 602703.89
L57: 201803 | N57: 8667214.14 | O57: 369469.5 | P57: 0 | Q57: 27217345.56 | R57: 6222447.88 | S57: 1572740.97 | T57: 602703.89
L58: 201804 | N58: 8667214.14 | O58: 369469.5 | P58: 0 | Q58: 27217345.56 | R58: 6222447.88 | S58: 1572740.97 | T58: 602703.89
L59: 201805 | N59: 8667214.14 | O59: 369469.5 | P59: 0 | Q59: 27217345.56 | R59: 6222447.88 | S59: 1572740.97 | T59: 602703.89
L60: 201806 | N60: 8667214.14 | O60: 369469.5 | P60: 0 | Q60: 27217345.56 | R60: 6222447.88 | S60: 1572740.97 | T60: 602703.89
L61: 201807 | N61: 8667214.14 | O61: 369469.5 | P61: 0 | Q61: 27217345.56 | R61: 6222447.88 | S61: 1572740.97 | T61: 602703.89
L62: 201808 | N62: 8667214.14 | O62: 369469.5 | P62: 0 | Q62: 27217345.56 | R62: 6222447.88 | S62: 1572740.97 | T62: 602703.89
L63: 201809 | N63: 8667214.14 | O63: 369469.5 | P63: 0 | Q63: 27217345.56 | R63: 6222447.88 | S63: 1572740.97 | T63: 602703.89
L64: 201810 | N64: 8667214.14 | O64: 369469.5 | P64: 0 | Q64: 27217345.56 | R64: 6222447.88 | S64: 1572740.97 | T64: 602703.89
L65: 201811 | N65: 8667214.14 | O65: 369469.5 | P65: 0 | Q65: 27217345.56 | R65: 6222447.88 | S65: 1572740.97 | T65: 602703.89
L66: 201812 | N66: 8667214.14 | O66: 369469.5 | P66: 0 | Q66: 27217345.56 | R66: 6222447.88 | S66: 1572740.97 | T66: 602703.89
L69: AMA Balance | N69: =(AVERAGE(N54,N66)+SUM(N55:N65))/12 -> 8667214.14 | O69: =(AVERAGE(O54,O66)+SUM(O55:O65))/12 -> 369469.5 | P69: 0 | Q69: 27217345.56 | R69: 6222447.88 | S69: 1572740.97 | T69: 602703.89
N70: Production | O70: Transmission | P70: Transmission | Q70: Production | R70: Production | S70: Production | T70: Distribution
L73: Reserve Ledger Current Activity
L75: Gl Ferc Acct:111000 | M75: Service:ED | N75: Plant Acct:302000 | O75: Plant Acct Desc:INTANG PLT FRANCH&CONSENT
L76: Depreciation Expense | M76: Plant Acct | N76: 302000
M77: GL FERC Acct | N77: 111000
M78: GL Service | N78: ED
M79: GL Jurisdiction | N79: AN | S79: ID | T79: WA
M80: Facility ID Desc | N80: CABINET GORGE HED | O80: FOREST USE PERMITS - IDAHO | P80: Long Lake | Q80: NOXON RAPIDS HED | R80: POST FALLS HED | S80: UNSPECIFIED | T80: WASHINGTON STATE FRANCHISES 028
L81: 201712 | N81: -16146.46 | O81: -1026.36 | P81: -45402.82 | Q81: -11334.08 | R81: -2623.58 | S81: 0 | T81: -2012.75
L82: 201801 | N82: -16146.44 | O82: -1026.36 | P82: -45402.8 | Q82: -11334.06 | R82: -2623.58 | S82: 0 | T82: -2012.75
L83: 201802 | N83: -16146.46 | O83: -1026.36 | P83: -45402.88 | Q83: -11334.06 | R83: -2623.6 | S83: 0 | T83: -2012.75
L84: 201803 | N84: -16146.48 | O84: -1026.36 | P84: -45402.82 | Q84: -11334.07 | R84: -2623.58 | S84: 0 | T84: -2012.74
L85: 201804 | N85: -16146.44 | O85: -1026.36 | P85: -45402.84 | Q85: -11334.05 | R85: -2623.58 | S85: 0 | T85: -2012.75
L86: 201805 | N86: -16146.44 | O86: -1026.36 | P86: -45402.93 | Q86: -11334.05 | R86: -2623.6 | S86: 0 | T86: -2012.74
L87: 201806 | N87: -16146.48 | O87: -1026.36 | P87: -45402.85 | Q87: -11334.06 | R87: -2623.6 | S87: 0 | T87: -2012.75
L88: 201807 | N88: -16146.45 | O88: -1026.36 | P88: -45402.86 | Q88: -11334.07 | R88: -2623.6 | S88: 0 | T88: -2012.75
L89: 201808 | N89: -16146.44 | O89: -1026.36 | P89: -45402.94 | Q89: -11334.09 | R89: -2623.6 | S89: 0 | T89: -2012.75
L90: 201809 | N90: -16146.47 | O90: -1026.36 | P90: -45402.86 | Q90: -11334.07 | R90: -2623.6 | S90: 0 | T90: -2012.75
L91: 201810 | N91: -16146.47 | O91: -1026.36 | P91: -45402.85 | Q91: -11334.05 | R91: -2623.6 | S91: 0 | T91: -2012.75
L92: 201811 | N92: -16146.44 | O92: -1026.36 | P92: -45402.91 | Q92: -11334.07 | R92: -2623.6 | S92: 0 | T92: -2012.75
L93: 201812 | N93: -16146.48 | O93: -1026.36 | P93: -45402.79 | Q93: -11334.08 | R93: -2623.58 | S93: 0 | T93: -2012.74
M95: 12 ME Dec 2018 | N95: =SUM(N82:N93) -> -193757.49 | O95: =SUM(O82:O93) -> -12316.32 | P95: -544834.33 | Q95: -136008.78 | R95: -31483.12 | S95: 0 | T95: -24152.97
N96: Production | O96: Transmission | P96: Production | Q96: Production | R96: Production | S96: Distribution | T96: Distribution
L99: Reserve Ledger Current Activity
L102: Ending Balance | M102: Plant Acct | N102: 302000
M103: GL FERC Acct | N103: 111000
M104: GL Service | N104: ED
M105: GL Jurisdiction | N105: AN | S105: ID | T105: WA
M106: Facility ID Desc | N106: CABINET GORGE HED | O106: FOREST USE PERMITS - IDAHO | P106: Long Lake | Q106: NOXON RAPIDS HED | R106: POST FALLS HED | S106: UNSPECIFIED | T106: WASHINGTON STATE FRANCHISES 028
L107: 201712 | N107: -3484200.05 | O107: -172408.9 | P107: -4652122.33 | Q107: -2482204.99 | R107: -268818.09 | S107: 0 | T107: -193541.45
L108: 201801 | N108: -3500346.49 | O108: -173435.26 | P108: -4697525.13 | Q108: -2493539.05 | R108: -271441.67 | S108: 0 | T108: -195554.2
L109: 201802 | N109: -3516492.95 | O109: -174461.62 | P109: -4742928.01 | Q109: -2504873.11 | R109: -274065.27 | S109: 0 | T109: -197566.95
L110: 201803 | N110: -3532639.43 | O110: -175487.98 | P110: -4788330.83 | Q110: -2516207.18 | R110: -276688.85 | S110: 0 | T110: -199579.69
L111: 201804 | N111: -3548785.87 | O111: -176514.34 | P111: -4833733.67 | Q111: -2527541.23 | R111: -279312.43 | S111: 0 | T111: -201592.44
L112: 201805 | N112: -3564932.31 | O112: -177540.7 | P112: -4879136.6 | Q112: -2538875.28 | R112: -281936.03 | S112: 0 | T112: -203605.18
L113: 201806 | N113: -3581078.79 | O113: -178567.06 | P113: -4924539.45 | Q113: -2550209.34 | R113: -284559.63 | S113: 0 | T113: -205617.93
L114: 201807 | N114: -3597225.24 | O114: -179593.42 | P114: -4969942.31 | Q114: -2561543.41 | R114: -287183.23 | S114: 0 | T114: -207630.68
L115: 201808 | N115: -3613371.68 | O115: -180619.78 | P115: -5015345.25 | Q115: -2572877.5 | R115: -289806.83 | S115: 0 | T115: -209643.43
L116: 201809 | N116: -3629518.15 | O116: -181646.14 | P116: -5060748.11 | Q116: -2584211.57 | R116: -292430.43 | S116: 0 | T116: -211656.18
L117: 201810 | N117: -3645664.62 | O117: -182672.5 | P117: -5106150.96 | Q117: -2595545.62 | R117: -295054.03 | S117: 0 | T117: -213668.93
L118: 201811 | N118: -3661811.06 | O118: -183698.86 | P118: -5151553.87 | Q118: -2606879.69 | R118: -297677.63 | S118: 0 | T118: -215681.68
L119: 201812 | N119: -3677957.54 | O119: -184725.22 | P119: -5196956.66 | Q119: -2618213.77 | R119: -300301.21 | S119: 0 | T119: -217694.42
M123: Average Monthly Average Balance | N123: =(AVERAGE(N107,N119)+SUM(N108:N118))/12 -> -3581078.782 | O123: =(AVERAGE(O107,O119)+SUM(O108:O118))/12 -> -178567.06 | P123: -4924539.474 | Q123: -2550209.363 | R123: -284559.64 | S123: 0 | T123: -205617.9354
N124: Production | O124: Transmission | P124: Production | Q124: Production | R124: Production | S124: Distribution | T124: Distribution

Sheet ADFIT
A1: AVISTA UTILITIES | M1: WA
A2: Washington Electric Cost Study
A3: Average - Twelve Months Ended December 31, 2018 | L3: Total Plant in Service | M3: Intangible
L4: Intangible (excluding CDA) | M4: 161261347
A5: Accumulated Deferred FIT Assignment to functions | L5: Intangible - common | M5: -111060902
D6: Washington | E6: Intangible | F6: Production | G6: Transmission | H6: Distribution | I6: General | J6: Check | L6: Intangible - common
M7: =SUM(M4:M6) -> 50200444.97
A8: Intangible | C8: P | D8: -6516550.305 | E8: 0 | F8: =D8 -> -6516550.305
A9: Production | C9: P | D9: -124563748.7 | E9: 0 | F9: =IF($C9="P",$D9,0) -> -124563748.7 | G9: =IF($C9="T",$D9,0) -> 0 | H9: =IF($C9="D",$D9,0) -> 0 | I9: =IF($C9="O",$D9,0) -> 0 | L9: Total Plant in Service | M9: Production
A10: Transmission | C10: T | D10: -65638036.69 | E10: 0 | F10: 0 | G10: =IF($C10="T",$D10,0) -> -65638036.69 | H10: 0 | I10: =IF($C10="O",$D10,0) -> 0 | L10: TOTAL PRODUCTION PLANT | M10: 905266231
A11: Distribution | C11: D | D11: -157122946.4 | E11: 0 | F11: 0 | G11: 0 | H11: -157122946.4 | I11: =IF($C11="O",$D11,0) -> 0 | L11: CDA LAKE SETTLEMENT | M11: 28009662
A12: General Utility | C12: O | D12: -9444899.306 | E12: 0 | F12: 0 | G12: 0 | H12: 0 | I12: =IF($C12="O",$D12,0) -> -9444899.306
A13: ADFIT-COMMON ALL | C13: O | D13: -43850783.71 | E13: =D13*O26 -> -13105445.82 | F13: 0 | G13: 0 | H13: 0 | I13: =D13*O25 -> -30745337.88 | J13: =D13-E13-F13-G13-H13-I13 -> 0 | M13: =SUM(M10:M12) -> 933275893
A14: ADFIT-COMMON ALL WWP | C14: O | D14: -399508.8888 | E14: =D14*O26 -> -119399.0541 | F14: 0 | G14: 0 | H14: 0 | I14: =D14*O25 -> -280109.8346 | J14: =D14-E14-F14-G14-H14-I14 -> 0
A15: Total Accelerated Tax Depr | D15: =SUM(D8:D14) -> -407536474 | E15: -13224844.88 | F15: -131080299 | G15: -65638036.69 | H15: -157122946.4 | I15: -40470347.02
A16: CDA Lake CDR Fund | C16: P | D16: 0 | E16: 0 | F16: =IF($C16="P",$D16,0) -> 0 | L16: Total Plant in Service | M16: Transmission
A17: CDA Lake IPA Fund | C17: P | D17: 0 | E17: 0 | F17: =IF($C17="P",$D17,0) -> 0 | L17: TOTAL TRANSMISSION PLANT | M17: 477023994
A18: CDA Settlement | C18: P | D18: -4436362.981 | E18: 0 | F18: =IF($C18="P",$D18,0) -> -4436362.981
A19: CDA Settlement Costs | C19: P | D19: 165131.8352 | E19: 0 | F19: =D19 -> 165131.8352
A20: Total Plant DFIT | D20: =SUM(D15:D19) -> -411807705.1 | E20: =SUM(E15:E19) -> -13224844.88 | F20: -135351530.1 | G20: -65638036.69 | H20: -157122946.4 | I20: -40470347.02
L21: Total Plant in Service | M21: Distribution
A22: Colstrip PCB | C22: P | D22: 26090.01441 | E22: =IF($C22="i",$D22,0) -> 0 | F22: =IF($C22="P",$D22,0) -> 26090.01441 | G22: =IF($C22="T",$D22,0) -> 0 | H22: =IF($C22="D",$D22,0) -> 0 | I22: =IF($C22="O",$D22,0) -> 0 | J22: =D25-E25-F25-G25-H25-I25 -> -0.5319231654 | L22: TOTAL DISTRIBUTION | M22: 1109131502
A23: ='[1]Elec-Dec18'!A28 -> ADFIT-Plant - AFUDC Equity | C23: O | D23: -21323.27756 | E23: =IF($C23="i",$D23,0) -> 0 | F23: 0 | G23: 0 | H23: 0 | I23: -21323.27756
A24: AFUDC CWIP Intangibles | C24: I | D24: -114929.3063 | E24: -114929.3063 | F24: 0 | G24: 0 | H24: 0 | I24: 0 | L24: Total Plant in Service | M24: General
A25: FMB/MTN Elec | B25: Allocate by Plant | D25: -964864.5319 | E25: =ROUND($D$25*E32,0) -> -16468 | F25: =ROUND($D$25*F32,0) -> -306158 | G25: =ROUND($D$25*G32,0) -> -156486 | H25: =ROUND($D$25*H32,0) -> -363847 | I25: =ROUND($D$25*I32,0) -> -121905 | L25: TOTAL GENERAL PLANT | M25: 260548554 | O25: =M25/M27 -> 0.7011354253
C26: D | D26: 0 | L26: Intangible-Common | M26: =-M5 -> 111060902 | O26: =M26/M27 -> 0.2988645747
A27: Total Other Deferred FIT | D27: =SUM(D22:D26) -> -1075027.101 | E27: -131397.3063 | F27: -280067.9856 | G27: -156486 | H27: -363847 | I27: -143228.2776 | J27: =D29-E29-F29-G29-H29-I29 -> -0.5319231898 | M27: =SUM(M25:M26) -> 371609456 | O27: =SUM(O25:O26) -> 1
A29: Total Deferred FIT | C29: K | D29: =D20+D27 -> -412882732.2 | E29: -13356242.18 | F29: -135631598.1 | G29: -65794522.69 | H29: -157486793.4 | I29: -40613575.3 | L29: Copied From 1) ADFIT - Dec 2016 AMA.xlsx Elec AMA-Functional
B31: Total | C31: Plant | D31: =SUM(E31:I31) -> 2941241290 | E31: =M7 -> 50200444.97 | F31: =M13 -> 933275893 | G31: =M17 -> 477023994 | H31: =M22 -> 1109131502 | I31: =M27 -> 371609456
E32: =ROUND(E31/$D$31,7) -> 0.0170678 | F32: =ROUND(F31/$D$31,7) -> 0.3173068 | G32: =ROUND(G31/$D$31,7) -> 0.1621846 | H32: =ROUND(H31/$D$31,7) -> 0.3770964 | I32: =ROUND(I31/$D$31,7) -> 0.1263444
A34: Plant Related Deferred FIT | B34: E-ROO + E-DFIT | D34: =SUM(E34:I34) -> -412884000 | E34: =ROUND(E29,-3) -> -13356000 | F34: =ROUND(F29,-3) -> -135632000 | G34: =ROUND(G29,-3) -> -65795000 | H34: =ROUND(H29,-3) -> -157487000 | I34: =ROUND(I29,-3) -> -40614000
A35: Restate 2018 to EOP | B35: E-EOP18 | C35: Direct | D35: =SUM(E35:I35) -> -36000 | E35: =-12993000-E34 -> 363000 | F35: =-135795000-F34 -> -163000 | G35: =-65974000-G34 -> -179000 | H35: =-157917000-H34 -> -430000 | I35: =-40241000-I34 -> 373000
A36: Eliminate AMI Rate Base EOP | B36: E-AMI | C36: Direct | D36: =SUM(E36:I36) -> 2820000 | E36: =ROUND(SUM(10036,602909,888785,30889,1104417,32367),-3) -> 2669000 | H36: =ROUND(5663,-3) -> 6000 | I36: =2820000-SUM(E36:H36) -> 145000
A37: PF 2019 Threshhold Capital | B37: E-PCAP | C37: Direct | D37: -2053000 | E37: =-2053000-SUM(F37:I37) -> -2053000
A39: Pro Forma Plant Related Deferred FIT | D39: =SUM(E39:I39) -> -412153000 | E39: =SUM(E34:E37) -> -12377000 | F39: =SUM(F34:F37) -> -135795000 | G39: =SUM(G34:G37) -> -65974000 | H39: =SUM(H34:H37) -> -157911000 | I39: =SUM(I34:I37) -> -40096000
A41: Other Debits and Credits Deferred FIT
A42: Regulatory Asset AFUDC | B42: Allocate by Plant | D42: -2000 | E42: =ROUND($D$42*E32,-3) -> 0 | F42: =ROUND($D$42*F32,-3) -> -1000 | G42: 0 | H42: -1000 | I42: 0
A43: Kettle Falls Disallowed Plant | C43: P | D43: =ROUND((23565-23565),-3) -> 0 | E43: =IF($C43="I",$D43,0) -> 0 | F43: =IF($C43="P",$D43,0) -> 0 | G43: =IF($C43="T",$D43,0) -> 0 | H43: =IF($C43="D",$D43,0) -> 0 | I43: =IF($C43="O",$D43,0) -> 0
A44: WNP3 Settlement Exchange Power | C44: P | D44: =ROUND((-513675+513675),-3) -> 0 | E44: 0 | F44: 0 | G44: 0 | H44: 0 | I44: 0
A45: CDA Settlement | C45: P | D45: =ROUND((-79789+71914),-3) -> -8000 | E45: 0 | F45: -8000 | G45: 0 | H45: 0 | I45: 0
A46: CDA/CDR Fund | C46: P | D46: 0 | E46: 0 | F46: 0 | G46: 0 | H46: 0 | I46: 0
A47: Spokane River Relicensing | C47: P | D47: =ROUND((-38246+28339),-3) -> -10000 | E47: 0 | F47: -10000 | G47: 0 | H47: 0 | I47: 0
A48: Spokane River PM&Es | C48: P | D48: =ROUND((-24308+15265),-3) -> -9000 | E48: 0 | F48: -9000 | G48: 0 | H48: 0 | I48: 0
A49: Montana Riverbed Lease | C49: P | D49: =ROUND((-118743+118743),-3) -> 0 | E49: 0 | F49: 0 | G49: 0 | H49: 0 | I49: 0
A50: Lancaster Generation | C50: P | D50: =-317000+317000 -> 0 | E50: 0 | F50: 0 | G50: 0 | H50: 0 | I50: 0
A52: Total Other Debits and Credits Deferred FIT | D52: =SUM(D42:D51) -> -29000 | E52: 0 | F52: -28000 | G52: 0 | H52: -1000 | I52: 0
A54: Total Cost of Service Deferred FIT | D54: =D39+D52 -> -412182000 | E54: -12377000 | F54: -135823000 | G54: -65974000 | H54: -157912000 | I54: -40096000
A65: AVISTA UTILITIES
A66: Idaho Electric Cost Study
A67: =A3 -> Average - Twelve Months Ended December 31, 2018
A69: Accumulated Deferred FIT Assignment to functions
A70: Adjustment C | D70: Idaho | E70: Production | F70: Transmission | G70: Distribution | H70: Other | I70: Check
A71: ACCELERATED TAX DEPRECIATION
A73: Production | C73: P | D73: -32336661 | E73: =IF($C73="P",$D73,0) -> -32336661 | F73: =IF($C73="T",$D73,0) -> 0 | G73: =IF($C73="D",$D73,0) -> 0 | H73: =IF($C73="O",$D73,0) -> 0
A74: Transmission | C74: T | D74: -14350880 | E74: 0 | F74: -14350880 | G74: 0 | H74: 0
A75: Distribution | C75: D | D75: -33792522 | E75: 0 | F75: 0 | G75: -33792522 | H75: 0
A76: General Utility | C76: O | D76: -5186594 | E76: 0 | F76: 0 | G76: 0 | H76: -5186594
A77: ADFIT-COMMON ALL | C77: O | D77: -3066322 | E77: 0 | F77: 0 | G77: 0 | H77: -3066322
A78: ADFIT-COMMON ALL WWP | C78: O | D78: -455305 | E78: 0 | F78: 0 | G78: 0 | H78: -455305
A79: Total Accelerated Tax Depr | D79: =SUM(D73:D78) -> -89188284 | E79: =SUM(E73:E78) -> -32336661 | F79: =SUM(F73:F78) -> -14350880 | G79: =SUM(G73:G78) -> -33792522 | H79: =SUM(H73:H78) -> -8708221
A81: Colstrip PCB | C81: P | D81: -214644 | E81: =IF($C81="P",$D81,0) -> -214644 | F81: =IF($C81="T",$D81,0) -> 0 | G81: =IF($C81="D",$D81,0) -> 0 | H81: =IF($C81="O",$D81,0) -> 0
A82: FMB/MTN Elec | C82: Allocate by Plant | D82: -1056009 | E82: =ROUND($D$82*E89,0) -> -409563 | F82: =ROUND($D$82*F89,0) -> -172293 | G82: =ROUND($D$82*G89,0) -> -404231 | H82: =ROUND($D$82*H89,0) -> -69922 | I82: =SUM(E82:H82) -> -1056009
A83: DSM (Elec-ID) Elec | C83: D | D83: -234832 | E83: =IF($C83="P",$D83,0) -> 0 | F83: =IF($C83="T",$D83,0) -> 0 | G83: =IF($C83="D",$D83,0) -> -234832 | H83: =IF($C83="O",$D83,0) -> 0
A84: Total Other Deferred FIT | D84: =SUM(D81:D83) -> -1505485 | E84: =SUM(E81:E83) -> -624207 | F84: =SUM(F81:F83) -> -172293 | G84: =SUM(G81:G83) -> -639063 | H84: =SUM(H81:H83) -> -69922
A86: Total Deferred FIT | B86: Adj C | D86: =D79+D84 -> -90693769 | E86: =E79+E84 -> -32960868 | F86: =F79+F84 -> -14523173 | G86: =G79+G84 -> -34431585 | H86: =H79+H84 -> -8778143 | I86: =SUM(E86:H86) -> -90693769
B88: Total | C88: Plant in Service | D88: =SUM(E88:H88) -> 1003871908 | E88: =367473563+10834416+11034126 -> 389342105 | F88: =163053472+733061 -> 163786533 | G88: 384273788 | H88: =58812045+53835+5092017+2511585 -> 66469482
E89: =E88/$D$88 -> 0.3878404226 | F89: =F88/$D$88 -> 0.1631548126 | G89: =G88/$D$88 -> 0.3827916539 | H89: =H88/$D$88 -> 0.06621311093
A90: Deferred FIT | C90: Direct | D90: =SUM(E90:H90) -> -90693000 | E90: =ROUND(E86,-3)+1000 -> -32960000 | F90: =ROUND(F86,-3) -> -14523000 | G90: =ROUND(G86,-3) -> -34432000 | H90: =ROUND(H86,-3) -> -8778000
A91: Deferred Gain on Office Bldg | B91: Adj D | C91: O | D91: 0 | E91: =IF($C91="P",$D91,0) -> 0 | F91: =IF($C91="T",$D91,0) -> 0 | G91: =IF($C91="D",$D91,0) -> 0 | H91: =IF($C91="O",$D91,0) -> 0
A92: KF and BP Disallowance | B92: Adj G | C92: P | D92: 0 | E92: =IF($C92="P",$D92,0) -> 0 | F92: =IF($C92="T",$D92,0) -> 0 | G92: =IF($C92="D",$D92,0) -> 0 | H92: =IF($C92="O",$D92,0) -> 0
A93: PF Production Factor Adj | B93: PF 2 | C93: Direct | D93: =SUM(E93:H93) -> 0 | E93: 0 | F93: 0 | G93: 0 | H93: 0
A94: PF 2008 Capital | B94: PF6 | C94: Direct | D94: =SUM(E94:H94) -> 0 | E94: 0 | F94: 0 | G94: 0 | H94: 0
A95: PF 2009 Capital | B95: PF7 | C95: Direct | D95: =SUM(E95:H95) -> 0 | E95: 0 | F95: 0 | G95: 0 | H95: 0
A96: PF Spokane River Relicensing | B96: PF10 | C96: P | D96: 0 | E96: =IF($C96="P",$D96,0) -> 0 | F96: =IF($C96="T",$D96,0) -> 0 | G96: =IF($C96="D",$D96,0) -> 0 | H96: =IF($C96="O",$D96,0) -> 0
A97: PF CDA Settlement | B97: PF11 | C97: P | D97: 0 | E97: =IF($C97="P",$D97,0) -> 0 | F97: =IF($C97="T",$D97,0) -> 0 | G97: =IF($C97="D",$D97,0) -> 0 | H97: =IF($C97="O",$D97,0) -> 0
A98: PF Montana Lease | B98: PF12 | C98: P | D98: 0 | E98: =IF($C98="P",$D98,0) -> 0 | F98: =IF($C98="T",$D98,0) -> 0 | G98: =IF($C98="D",$D98,0) -> 0 | H98: =IF($C98="O",$D98,0) -> 0
A99: PF Idaho AMR | B99: PF16 | C99: D | D99: 0 | E99: =IF($C99="P",$D99,0) -> 0 | F99: =IF($C99="T",$D99,0) -> 0 | G99: =IF($C99="D",$D99,0) -> 0 | H99: =IF($C99="O",$D99,0) -> 0
A101: Total Pro Forma Deferred FIT | D101: =SUM(D90:D99) -> -90693000 | E101: =SUM(E90:E99) -> -32960000 | F101: =SUM(F90:F99) -> -14523000 | G101: =SUM(G90:G99) -> -34432000 | H101: =SUM(H90:H99) -> -8778000

Sheet WA Retail Load
A1: WUTC Docket No. UE-19____
A2: Normalized Usage by Month
A3: Twelve Months Ended December 31, 2018
A4: WASHINGTON ELECTRIC SYSTEM
D5: January | E5: February | F5: March | G5: April | H5: May | I5: June | J5: July | K5: August | L5: September | M5: October | N5: November | O5: December | P5: Annual Total
A6: Revenue Run Billed Usage
B7: Residential Schedule 001/002 | D7: 290781554.1 | E7: 227575425 | F7: 233136064.2 | G7: 195827349.3 | H7: 159686942.7 | I7: 149276244.6 | J7: 162965398.6 | K7: 205105319.9 | L7: 165901549.6 | M7: 149412587.1 | N7: 181215231.5 | O7: 245751615 | P7: =SUM(D7:O7) -> 2366635282
B8: General Svc Schedule 011/012 | D8: 64968017.22 | E8: 55958109.22 | F8: 55740105.92 | G8: 50692240.11 | H8: 46948189.07 | I8: 46100696.83 | J8: 48168343.66 | K8: 55210418.3 | L8: 48512488.31 | M8: 45641900.68 | N8: 47727635.01 | O8: 57034428.78 | P8: =SUM(D8:O8) -> 622702573.1
B9: Large Gen Svc Schedule 021/022 | D9: 125937052.8 | E9: 113399610.2 | F9: 112223930.4 | G9: 111090733.6 | H9: 112273215.2 | I9: 113413112.2 | J9: 114915539.8 | K9: 124759437.3 | L9: 113710882.9 | M9: 110448175.9 | N9: 109051287.4 | O9: 119116948.3 | P9: 1380339926
B10: Extra Large Gen Schedule 25 | D10: 85895739.5 | E10: 82389792.7 | F10: 59452404.5 | G10: 91719050 | H10: 50375927.6 | I10: 94067376.9 | J10: 91430986 | K10: 95462593.19 | L10: 98727948.69 | M10: 89411353.7 | N10: 95120660.88 | O10: 88922599.9 | P10: 1022976434
B11: Pumping Schedule 30/31/32 | D11: 5199805.678 | E11: 4295325.279 | F11: 4226647.8 | G11: 5323831.003 | H11: 10126135.69 | I11: 18516636.55 | J11: 23083952.64 | K11: 28015837.67 | L11: 23798947.99 | M11: 12939703.93 | N11: 6282585.274 | O11: 3998282.943 | P11: 145807692.4
B12: Street and Area Lights | D12: 1677509.998 | E12: 1505148.608 | F12: 1474261.937 | G12: 1503568.736 | H12: 1565521.43 | I12: 1544276.268 | J12: 1517440.931 | K12: 1578869.159 | L12: 1535455.022 | M12: 1534835.862 | N12: 1517745.801 | O12: 1587397.787 | P12: 18542031.54
A13: Total Revenue Run Billed Usage | D13: =SUM(D7:D12) -> 574459679.3 | E13: =SUM(E7:E12) -> 485123411 | F13: 466253414.7 | G13: 456156772.8 | H13: 380975931.7 | I13: 422918343.3 | J13: 442081661.7 | K13: 510132475.5 | L13: 452187272.6 | M13: 409388557.2 | N13: 440915145.9 | O13: 516411272.7 | P13: 5557003938
A15: Net Unbilled Usage
B16: Residential Schedule 001/002 | D16: -16807345 | E16: -11417924 | F16: -2538576 | G16: -21339210 | H16: -11882566 | I16: -6167987 | J16: 22269076 | K16: -2879705 | L16: -26562728 | M16: 10771561 | N16: 32345083 | O16: 12693423 | P16: =SUM(D16:O16) -> -21516898
B17: General Svc Schedule 011/012 | D17: -5056613 | E17: 226900 | F17: -1492318 | G17: -3135024 | H17: -94436 | I17: -612520 | J17: 5513065 | K17: -3427114 | L17: -5492340 | M17: 4178114 | N17: 5066221 | O17: -648853 | P17: =SUM(D17:O17) -> -4974918
B18: Large Gen Svc Schedule 021/022 | D18: -17335146 | E18: 2932085 | F18: -3284636 | G18: -1903474 | H18: 4768104 | I18: 131589 | J18: 11356739 | K18: -11474036 | L18: -10604470 | M18: 11698081 | N18: 8235200 | O18: -7362830 | P18: -12842794
B19: Extra Large Gen Schedule 25 | D19: 9694517 | E19: 4244920 | F19: 29856455 | G19: 3968084 | H19: 42504574 | I19: 1641436 | J19: 1095411 | K19: 3752803 | L19: -8960868 | M19: 5368369 | N19: -7500338 | O19: 4713680 | P19: 90379043
B20: Pumping Schedule 30/31/32 | D20: 329032 | E20: -115788 | F20: -137275 | G20: 22402 | H20: 930226 | I20: 2217873 | J20: 2033088 | K20: 726896 | L20: -1530437 | M20: -1792052 | N20: -1310272 | O20: -1358868 | P20: 14825
B21: Street and Area Lights | D21: 0 | E21: 0 | F21: 0 | G21: 0 | H21: 0 | I21: 0 | J21: 0 | K21: 0 | L21: 0 | M21: 0 | N21: 0 | O21: 0 | P21: 0
A22: Net Unbilled Usage | D22: =SUM(D16:D21) -> -29175555 | E22: =SUM(E16:E21) -> -4129807 | F22: 22403650 | G22: -22387222 | H22: 36225902 | I22: -2789609 | J22: 42267379 | K22: -13301156 | L22: -53150843 | M22: 30224073 | N22: 36835894 | O22: 8036552 | P22: 51059258
A24: Schedule Shifting Adjustment
B25: General Svc Schedule 011/012 | P25: =SUM(D25:O25) -> 0
B26: Large Gen Svc Schedule 021/022 | P26: =SUM(D26:O26) -> 0
A27: Schedule Shifting Adjustment | D27: =SUM(D25:D26) -> 0 | E27: =SUM(E25:E26) -> 0 | F27: 0 | G27: 0 | H27: 0 | I27: 0 | J27: 0 | K27: 0 | L27: 0 | M27: 0 | N27: 0 | O27: 0 | P27: =SUM(D27:O27) -> 0
A29: Other Usage Adjustments
B30: Extra Large Gen Schedule 25 | D30: -2351888 | E30: 424875 | F30: =6266574-424875 -> 5841699 | G30: =3075877-6266574 -> -3190697 | H30: =4262752-3075877 -> 1186875 | I30: =-15075-4262752 -> -4277827 | J30: =2921121+15075 -> 2936196 | K30: =2433674-2921121 -> -487447 | L30: =2077947-2433674 -> -355727 | M30: =2418885-2077947 -> 340938 | N30: =3721162-2418885 -> 1302277 | O30: =2560423-3721162 -> -1160739 | P30: =SUM(D30:O30) -> 208535
A32: Weather Adjustment
B33: Residential Schedule 001/002 | D33: 18971503 | E33: -7032417 | F33: -1444882 | G33: -357275 | H33: 11243016 | I33: 8391924 | J33: -18566532 | K33: -7591998 | L33: 6498512 | M33: 1439157 | N33: 2721258 | O33: 15313039 | P33: =SUM(D33:O33) -> 29585305
B34: General Svc Schedule 011/012 | D34: 1930773 | E34: -710823 | F34: -145200 | G34: -42341 | H34: 444874 | I34: 944145 | J34: -2529540 | K34: -1038088 | L34: 865276 | M34: 123714 | N34: 198669 | O34: 1536838 | P34: =SUM(D34:O34) -> 1578297
B35: Large Gen Svc Schedule 021/022 | D35: 991519 | E35: -366102 | F35: -74963 | G35: -40508 | H35: -779435 | I35: 825754 | J35: -2819054 | K35: -1160154 | L35: 980935 | M35: 50179 | N35: 20819 | O35: 778502 | P35: -1592508
B36: Extra Large Gen Schedule 25 | D36: 0 | E36: 0 | F36: 0 | G36: 0 | H36: 0 | I36: 0 | J36: 0 | K36: 0 | L36: 0 | M36: 0 | N36: 0 | O36: 0 | P36: 0
B37: Pumping Schedule 30/31/32 | D37: 0 | E37: 0 | F37: 0 | G37: 0 | H37: 0 | I37: 0 | J37: 0 | K37: 0 | L37: 0 | M37: 0 | N37: 0 | O37: 0 | P37: 0
B38: Street and Area Lights | D38: 0 | E38: 0 | F38: 0 | G38: 0 | H38: 0 | I38: 0 | J38: 0 | K38: 0 | L38: 0 | M38: 0 | N38: 0 | O38: 0 | P38: 0
A39: Total Weather Adjustment | D39: =SUM(D33:D38) -> 21893795 | E39: =SUM(E33:E38) -> -8109342 | F39: -1665045 | G39: -440124 | H39: 10908455 | I39: 10161823 | J39: -23915126 | K39: -9790240 | L39: 8344723 | M39: 1613050 | N39: 2940746 | O39: 17628379 | P39: 29571094
A41: Normalized Test Year Usage
B42: Residential Schedule 001/002 | D42: =D7+D16+D33 -> 292945712.1 | E42: 209125084 | F42: 229152606.2 | G42: 174130864.3 | H42: 159047392.7 | I42: 151500181.6 | J42: 166667942.6 | K42: 194633616.9 | L42: 145837333.6 | M42: 161623305.1 | N42: 216281572.5 | O42: 273758077 | P42: =SUM(D42:O42) -> 2374703689
B43: General Svc Schedule 011/012 | D43: =D8+D17+D34+D25 -> 61842177.22 | E43: =E8+E17+E34+E25 -> 55474186.22 | F43: 54102587.92 | G43: 47514875.11 | H43: 47298627.07 | I43: 46432321.83 | J43: 51151868.66 | K43: 50745216.3 | L43: 43885424.31 | M43: 49943728.68 | N43: 52992525.01 | O43: 57922413.78 | P43: 619305952.1
B44: Large Gen Svc Schedule 021/022 | D44: =D9+D18+D35+D26 -> 109593425.8 | E44: 115965593.2 | F44: 108864331.4 | G44: 109146751.6 | H44: 116261884.2 | I44: 114370455.2 | J44: 123453224.8 | K44: 112125247.3 | L44: 104087347.9 | M44: 122196435.9 | N44: 117307306.4 | O44: 112532620.3 | P44: 1365904624
B45: Extra Large Gen Schedule 25 | D45: =D10+D19+D30+D36 -> 93238368.5 | E45: =E10+E19+E30+E36 -> 87059587.7 | F45: 95150558.5 | G45: 92496437 | H45: 94067376.6 | I45: 91430985.9 | J45: 95462593 | K45: 98727949.19 | L45: 89411353.69 | M45: 95120660.7 | N45: 88922599.88 | O45: 92475540.9 | P45: 1113564012
B46: Pumping Schedule 31/32 | D46: =D11+D20+D37 -> 5528837.678 | E46: 4179537.279 | F46: 4089372.8 | G46: 5346233.003 | H46: 11056361.69 | I46: 20734509.55 | J46: 25117040.64 | K46: 28742733.67 | L46: 22268510.99 | M46: 11147651.93 | N46: 4972313.274 | O46: 2639414.943 | P46: 145822517.4
B47: Street and Area Lights | D47: 1677509.998 | E47: 1505148.608 | F47: 1474261.937 | G47: 1503568.736 | H47: 1565521.43 | I47: 1544276.268 | J47: 1517440.931 | K47: 1578869.159 | L47: 1535455.022 | M47: 1534835.862 | N47: 1517745.801 | O47: 1587397.787 | P47: 18542031.54
A48: Total Normalized Test Year Usage | D48: =SUM(D42:D47) -> 564826031.3 | E48: =SUM(E42:E47) -> 473309137 | F48: 492833718.7 | G48: 430138729.8 | H48: 429297163.7 | I48: 426012730.3 | J48: 463370110.7 | K48: 486553632.5 | L48: 407025425.6 | M48: 441566618.2 | N48: 481994062.9 | O48: 540915464.7 | P48: 5637842825
B50: Percentage of Annual Usage | D50: =ROUND(D48/$P$48,3) -> 0.1 | E50: =ROUND(E48/$P$48,3) -> 0.084 | F50: =ROUND(F48/$P$48,3)+0.001 -> 0.088 | G50: 0.076 | H50: 0.076 | I50: 0.076 | J50: 0.082 | K50: 0.086 | L50: 0.072 | M50: 0.078 | N50: =ROUND(N48/$P$48,3)+0.001 -> 0.086 | O50: 0.096 | P50: =SUM(D50:O50) -> 1
B52: Residential Usage | D52: =D42 -> 292945712.1 | E52: =E42 -> 209125084 | F52: 229152606.2 | G52: 174130864.3 | H52: 159047392.7 | I52: 151500181.6 | J52: 166667942.6 | K52: 194633616.9 | L52: 145837333.6 | M52: =M42 -> 161623305.1 | N52: 216281572.5 | O52: 273758077 | P52: =SUM(D52:O52) -> 2374703689
B53: Schedule 001/002 Customers | D53: 215198 | E53: 214198 | F53: 216045 | G53: 214971 | H53: 215099 | I53: 214829 | J53: 215408 | K53: 215648 | L53: 214122 | M53: 218388 | N53: 216943 | O53: 217126 | P53: 2587975
B54: Schedule 001/002 Norm Use/Customer | D54: =D52/D53 -> 1361.284548 | E54: =E52/E53 -> 976.3166976 | F54: 1060.670722 | G54: 810.0202553 | H54: 739.4148401 | I54: 705.2128977 | J54: 773.7314428 | K54: 902.5523859 | L54: 681.0945798 | M54: =M52/M53 -> 740.0741115 | N54: =N52/N53 -> 996.951146 | O54: =O52/O53 -> 1260.825866 | P54: 917.5914329
B55: Non-Residential Group Usage | D55: =D43+D44+D46 -> 176964440.7 | E55: =E43+E44+E46 -> 175619316.7 | F55: 167056292.1 | G55: 162007859.7 | H55: 174616873 | I55: 181537286.6 | J55: 199722134.1 | K55: 191613197.2 | L55: 170241283.2 | M55: =M43+M44+M46 -> 183287816.6 | N55: 175272144.7 | O55: 173094449 | P55: 2131033094
B56: Non-Residential Group Customers | D56: 36868 | E56: 36445 | F56: 36552 | G56: 36255 | H56: 36544 | I56: 36486 | J56: 36644 | K56: 36729 | L56: 35718 | M56: 37528 | N56: 36613 | O56: 36651 | P56: 439033
B57: Non-Residential Group Norm Use/Customer | D57: =D55/D56 -> 4799.946857 | E57: =E55/E56 -> 4818.749258 | F57: 4570.373498 | G57: 4468.565983 | H57: 4778.263818 | I57: 4975.532713 | J57: 5450.336593 | K57: 5216.945663 | L57: 4766.26024 | M57: =M55/M56 -> 4884.028367 | N57: =N55/N56 -> 4787.156057 | O57: =O55/O56 -> 4722.775613 | P57: 4853.924634
